{"text_format":"3","workbook":"xlsx","n_sheets":13,"sheets":["بدء","أساسيات","مقدمة حول الدالات","AVERAGE","الحد الأدنى والحد الأقصى","التاريخ والوقت","ضمّ النص والأرقام","عبارات IF","VLOOKUP","الدالات الشرطية","معالج الدالة","أخطاء في الصيغة","التعرّف على المزيد"],"not_rendered":{"images":32,"defined_names":21},"read":"whole","date_system":"1900"}

{"sheet":"بدء","index":0,"n_rows":4,"n_cols":1,"rows_kept":4}
[]
["البدء باستخدام الصيغ"]
["في خطوات قليلة فقط، ستكون جاهزاً للعمل باستخدام صيغ ودالات الإنشاء في Excel تطبيق جدول البيانات الأكثر فعالية في العالم."]
["ارجع إلى الأعلى بالضغط على CTRL+ مفتاح HOME. لبدء الجولة اضغط على CTRL+PAGE DOWN."]

{"sheet":"أساسيات","index":1,"n_rows":43,"n_cols":10,"rows_kept":43}
["أساسيات: تنفيذ العمليات الرياضية باستخدام Excel"]
["يمكنك الإضافة والطرح والضرب والقسمة في Excel دون استخدام الدالات المضمنة. يجب أن تستخدم بعض عوامل التشغيل الأساسية: + و- و* و/. تبدأ كل الصيغ بعلامة يساوي (=).\n",null,"الأرقام التي يجب استخدامها:",null,"العملية:","الصيغ:","الإجابات:"]
["للإضافة، حدد الخلية F3، اكتب =C3+C4، ثم اضغط على مفتاح الإدخال Enter. \n",null,1,null,"الإضافة (+) ",null,{"$f":"C3+C4","v":3}]
["للطرح، حدد الخلية F4، واكتب =C3-C4 ثم اضغط على مفتاح الإدخال Enter. ",null,2,null,"الطرح (-) ",null,{"$f":"C3-C4","v":-1}]
["للضرب، حدد الخلية F5، واكتب =C3*C4 ثم اضغط على مفتاح الإدخال Enter.\n",{"$nulls":3},"الضرب (*) ",null,{"$f":"C3*C4","v":2}]
["للقسمة، حدد الخلية F6، واكتب =C3/C4، ثم اضغط على مفتاح الإدخال Enter. \n",{"$nulls":3},"القسمة (/) ",null,{"$f":"C3/C4","v":0.5}]
["اطلع على ذلك : غير الأرقام الموجودة في الخلايا C3 و C4، وشاهد نتائج الصيغة تتغير تلقائياً.",{"$nulls":3},"الأس (^) ",null,{"$f":"C3^C4","v":1}]
["معلومة إضافية: يمكنك رفع قيمة إلى أس باستخدام الرمز (^)، مثل =A1^A2. قم بإدخاله باستخدام Shift+6. في الخلية F7، أدخل =C3^C4."]
["انتقل إلى الأسفل لمزيد من التفاصيل"]
["الخطوة التالية"]
["المزيد حول الصيغ والخلايا والنطاقات"]
["يتكون Excel من خلايا فردية مجمعة في صفوف وأعمدة. يتم ترقيم الصفوف، ووضع حروف للأعمدة. يوجد أكثر من مليون صف و16000 عمود يمكنك وضع الصيغ في أي منها. \n"]
["يمكن أن تحتوي الصيغ على مراجع خلايا، نطاقات من مراجع الخلايا وعوامل التشغيل والثوابت. فيما يلي جميع أمثلة الصيغ:\n\n=A1+B1\n=10+20\n=SUM(A1:A10)\n\n"]
["فستلاحظ أن في المثال الثالث الوارد أعلاه، استخدمنا الدالة SUM. الدالة هي أمر معد مسبقاً يأخذ قيمة أو قيم ويحسبها بطريقة معينة ويرجع نتيجة. على سبيل المثال، تأخذ الدالة SUM مراجع الخلايا أو النطاقات التي قمت بتحديدها، وتحسب الإجمالي الخاص بها. في هذا المثال تأخذ الخلايا من A1 إلى A10، وتنتج الإجمالي الخاص بها. يتضمن Excel أكثر من 400 دالة، يمكنك استكشافها ضمن علامة التبويب صيغ.\n"]
["الصيغ التي تحتوي على دالات تبدأ بعلامة يساوي، ثم يتبع اسم الدالة بالوسيطات الخاصة بها (قيم تستخدمها الدالة للحساب) يتم التفافها بين أقواس. \n"]
["يمكنك تأكيد صيغة عن طريق الضغط على مفتاح الإدخال Enter. بمجرد إجراء ذلك ستقوم الصيغة بالحساب، وسيتم عرض النتيجة في الخلية. للاطلاع على الصيغة نفسها، يمكنك إلقاء نظرة على شريط الصيغة أسفل الشريط، أو اضغط على F2 لدخول وضع التحرير، حيث يمكنك رؤية الصيغة في الخلية. اضغط على مفتاح الإدخال Enter مرة أخرى لإضفاء اللمسات الأخيرة على الصيغة وحساب النتيجة.\n\n"]
["بعض توضيحات الصيغ"]
["=10*20 عبارة عن صيغة، حيث 10 و20 هما ثابتان، و العلامة * هي عامل التشغيل."]
["=SUM(A1:A10) عبارة عن صيغة، حيث SUM هي اسم الدالة، وأقواس الفتح والإغلاق تحتوي على وسيطة الصيغة وA1:A10 هو نطاق الخلايا للدالة."]
["=SUM(A1:A10,C1:C10) عبارة عن صيغة، حيث SUM هي اسم الدالة، وأقواس الفتح والإغلاق تحتوي على وسيطة الصيغة وA1:A10,C1:C10 هي نطاق الخلايا للدالة مفصولة بفاصلة."]
["من الرائع معرفة أن: الثوابت هي قيم تقوم بإدخالها في الخلايا أو الصيغ. في حين أن =10+20 قد تحسب نفس قيمة =A1+B1، فإن الثوابت لا تعتبر ممارسة جيدة. لماذا؟ لأنه يتعذر عليك رؤية الثابت بسهولة دون تحديد الخلية والبحث عنه. وهذا يجعل التغيير وقت لاحق صعباً. أنها أسهل بكثير من وضع الثوابت الخاصة بك في الخلايا، حيث يمكن تعديلها بسهولة، والإشارة إليها في الصيغ.\n\nعلى سبيل المثال: حدد الخلية الصفراء بـ 12 أدناه. سترى أننا استخدمنا الدالة SUM مع نطاق الخلايا. نحن لم نكتب \"4\" أو \"8\" مباشرة في الصيغة. \n"]
["السابق"]
["التالي"]
["المزيد من المعلومات على الويب"]
["استخدام Excel كحاسبة"]
["نظرة عامة حول الصيغ في Excel"]
["دالات Excel (حسب الفئة) "]
["دالات Excel (بالترتيب الأبجدي) "]
["التدريب المجاني على Excel عبر الإنترنت"]
{"$rows_empty":10}
[{"$nulls":9},"القيم"]
[{"$nulls":9},4]
[{"$nulls":9},8]
[{"$nulls":9},{"$f":"SUM(J41:J42)","v":12}]

{"sheet":"مقدمة حول الدالات","index":2,"n_rows":88,"n_cols":7,"rows_kept":88}
["مقدمة حول الدالات"]
["تمنحك الدالات إمكانية القيام بمجموعة متنوعة من الأشياء، مثل إجراء عمليات حسابية أو البحث عن قيم أو حتى حساب التواريخ والأوقات. لنجرب بعض الطرق لإضافة القيم باستخدام الدالة SUM.",null,"فاكهة","القيمة",null,"اللحوم","القيمة"]
["ضمن العمود القيمة للفاكهة (الخلية D7)، قم بإدخال =SUM(D3:D6)، أو اكتب =SUM(، ثم حدد ذلك النطاق باستخدام الماوس، واضغط على مفتاح الإدخال Enter. سيتم جمع القيم في الخلايا D3 وD4 وD5 وD6. يجب أن تكون الإجابة 170.\n",null,"تفاح",50,null,"لحم بقري",50]
["والآن لنجرب الجمع التلقائي. حدد الخلية الموجودة ضمن العمود للحوم (الخلية G7)، ثم انتقل إلى الصيغ > جمع تلقائي > تحديد الدالة المجموع. سترى Excel يقوم بإدخال الصيغة تلقائياً نيابة عنك. اضغط على مفتاح الإدخال Enter لتأكيد الأمر. تحتوي ميزة \"جمع تلقائي\" على كافة الدالات الأكثر شيوعاً.\n",null,"برتقال",20,null,"دجاج",30]
["فيما يلي اختصار لوحة مفاتيح منظمة. حدد الخلية D15، ثم اضغط على Alt =، ثم مفتاح الإدخال Enter. يتم إدخال SUM تلقائياً بالنيابة عنك.",null,"موز",60,null,"لحم ماعز",10]
["انتقل إلى الأسفل لمزيد من التفاصيل",null,"ليمون",40,null,"سمك",50]
["معلومة إضافية\nجرب الدالة COUNT باستخدام أي من الأساليب التي جربتها مسبقاً. تحسب الدالة COUNT عدد الخلايا في نطاق يحتوي على أرقام.",null,"SUM > ",{"$f":"SUM(D3:D6)","v":170},null,"SUM > "]
["الخطوة التالية"]
["المزيد حول الدالات",null,"الصنف","المبلغ",null,"الصنف","القيمة"]
["انتقل إلى علامة التبويب الصيغ واستعرض \"مكتبة الدالات\"، حيث يتم إدراج الدالات حسب الفئة، مثل النص والتاريخ والوقت وغير ذلك. \"إدراج دالة\" سيسمح لك بالبحث عن الدالات حسب الاسم، وتشغيل معالج الدالة الذي يمكن أن يساعدك في إنشاء الصيغة الخاصة بك. \n\nعندما تبدأ بكتابة اسم دالة بعد الضغط على =، سيفتح Excel Intellisense، حيث سيدرج كافة الدالات التي تبدأ بالحروف التي كتبتها. عند العثور على الخيار الذي تريده، اضغط على المفتاح Tab، وسيقوم Excel بإنهاء اسم الدالة وإدخال قوس الفتح نيابة عنك. سيتم عرض الوسيطات الاختيارية والمطلوبة أيضاً. \n\n\n\nالآن دعنا نتعرف على تكوين بعض الدالات. تتم هيكلة SUM كما يلي:",null,"الخبز",50,null,"الخبز",50]
["إذا كان يمكن للصيغة أن تتحدث فالرسالة كالآتي، إرجاع مجموع كل القيم في الخلايا من D35 إلى D38، والعمود H. SUM هو اسم الدالة، وD35:D38 هي وسيطة النطاق الأولى، ودائماً ما تكون مطلوبة، وH:H وسيطة النطاق الثانية، مفصولة بفاصلة. والآن، دعنا نجرب واحدة لا تتطلب أي وسيطة.\n",null,"الكعك المقلي",100,null,"الكعك المقلي",100]
["ترجع الدالة TODAY تاريخ اليوم. سيتم تحديثها تلقائياً عندما يقوم Excel بإعادة الحساب.",null,"البسكويت",40,null,"البسكويت",40]
["اطلع على ذلك\nحدد هذه الخلايا. ثم في الزاوية السفلية اليمنى من نافذة Excel، يمكنك البحث عن مجموع: 170 في الشريط السفلي. هذا يسمى شريط الحالة، وهي طريقة أخرى للعثور بسرعة على الإجمالي والتفاصيل الأخرى حول خلية أو نطاق محدد. ",null,"الكعك",50,null,"الكعك",50]
["تفاصيل مهمة\nانقر نقراً مزدوجاً فوق هذه الخلية. ستلاحظ 100 في النهاية. على الرغم من أنه من الممكن وضع الأرقام في صيغة مماثلة لما يلي، إلا إننا لا نوصي بها إلا للضرورة. يعرف ذلك بالثابت، ومن السهل إذا نسيت أنه هناك. نحن ننصحك بالرجوع إلى خلية أخرى بدلاً من تلك، مثل الخلية F51. بهذه الطريقة تصبح سهلة الرؤية وغير مخفية داخل صيغة. ",null,"الفطائر",20,null,"الفطائر",20]
["المزيد من المعلومات على الويب",null,"SUM > ",null,null,"COUNT >"]
["كافة المعلومات حول الدالة SUM"]
["استخدام الجمع التلقائي لجمع الأرقام"]
["كافة المعلومات حول الدالة COUNT"]
["التدريب المجاني على Excel عبر الإنترنت"]
["الرجوع إلى أعلى"]
["الخطوة التالية"]
{"$rows_empty":12}
[null,null,"فاكهة","المبلغ"]
[null,null,"تفاح",50]
[null,null,"برتقال",20]
[null,null,"موز",60]
[null,null,"ليمون",40]
[null,null,"SUM > ",{"$f":"SUM(D35:D38)","v":170}]
[]
[]
[]
[]
[null,null,"الصنف","القيمة"]
[null,null,"السيارات",20]
[null,null,"شاحنات",10]
[null,null,"دراجة",10]
[null,null,"ألواح",40]
[]
[{"$nulls":3},"الإجمالي:",null,"قيمة إضافية:","الإجمالي الجديد"]
[{"$nulls":3},{"$f":"SUM(D45:D48,100)","v":180},null,100,{"$f":"SUM(D45:D48,F51)","v":180}]
{"$rows_empty":35}
["التدريب المجاني على Excel عبر الإنترنت"]
["ارجع إلى الأعلى بالضغط على CTRL+ مفتاح HOME. للمتابعة إلى الخطوة التالية، اضغط على مفتاح PAGE DOWN‏+CTRL."]

{"sheet":"AVERAGE","index":3,"n_rows":46,"n_cols":7,"rows_kept":46}
["الدالة AVERAGE"]
["استخدم الدالة AVERAGE للحصول على متوسط الأرقام في نطاق الخلايا.",null,"فاكهة","القيمة",null,"اللحوم","القيمة"]
["حدد الخلية D7، ثم استخدم جمع تلقائي لإضافة الدالة AVERAGE.",null,"تفاح",50,null,"لحم بقري",50]
["الآن حدد الخلية G7، وأدخل الدالة AVERAGE عن طريق كتابة =AVERAGE(G3:G6). ",null,"برتقال",20,null,"دجاج",30]
["في الخلية D15، يمكنك استخدام إما جمع تلقائي وإما تكتب لإدخال دالة AVERAGE أخرى. ",null,"موز",60,null,"لحم ماعز",10]
["اطلع على ذلك\nحدد أي نطاق من الأرقام، ثم ابحث في شريط الحالة عن متوسط فوري.\n",null,"ليمون",40,null,"سمك",50]
["تنشيط الورقة السابقة",null,"AVERAGE >",null,null,"AVERAGE >"]
["الانتقال إلى الورقة التالية"]
["معلومة إضافية\nجرّب استخدام MEDIAN أو MODE هنا. \n\nMEDIAN يقدم لك القيمة الموجودة في الجزء الأوسط من مجموعة البيانات، بينما \nMODE يقدم لك الخيار الأكثر حدوثاً.\n",null,"الصنف","القيمة",null,"الصنف","القيمة"]
["ارتباطات للمزيد من المعلومات على الويب",null,"الخبز",50,null,"الخبز",50]
["حدد للتعرف على كافة المعلومات حول الدالة AVERAGE على الويب",null,"الكعك المقلي",100,null,"الكعك المقلي",100]
["حدد للتعرف على كافة المعلومات حول الدالة MEDIAN على الويب",null,"البسكويت",40,null,"البسكويت",40]
["حدد للتعرف على كافة المعلومات حول الدالة MODE على الويب",null,"الكعك",50,null,"الكعك",50]
["حدد للتعرف على تدريب Excel المجاني من الويب",null,"الفطائر",20,null,"الفطائر",20]
[null,null,"AVERAGE >"]
{"$rows_empty":13}
[null,null,"المزيد حول الدالة SUM "]
[null,null,"في بعض التلميحات الواردة أعلاه، لقد تعرّفت على كيفية استخدام الدالة SUM. فيما يلي المزيد من التفاصيل حول ذلك."]
[null,null,"تتضمن الخلايا C37 حتى D41 بيانات ذات عمودين: الفاكهة والقيمة. "]
[null,null,"الصيغة في الخلية D42‏: =SUM‏(D38‏:D41)."]
[null,null,"إذا كان يمكن للدالة SUM في الخلية D42 أن تتحدث، فالرسالة كالآتي: قم بتجميع القيم الموجودة في الخلايا D38 وD39 وD40 وD41."]
[null,null,"فيما يلي طريقة أخرى يمكن استخدامها:"]
[null,null,"تتضمن الخلايا C47 حتى D48 بيانات ذات عمودين: الصنف والقيمة. "]
[]
[]
[]
[]
[]
[null,null,"المزيد من المعلومات على الويب"]
[null,null,"كافة المعلومات حول الدالة SUM"]
[null,null,"كافة المعلومات حول الدالة SUMIF"]
[null,null,"استخدام Excel كحاسبتك الشخصية"]
[null,null,"التدريب المجاني على Excel عبر الإنترنت"]
[null,null,"ارجع إلى الأعلى بالضغط على CTRL+ مفتاح HOME. للمتابعة إلى الخطوة التالية، اضغط على مفتاح PAGE DOWN‏+CTRL."]

{"sheet":"الحد الأدنى والحد الأقصى","index":4,"n_rows":19,"n_cols":7,"rows_kept":19}
["الدالتان MIN وMAX"]
["استخدم الدالة MIN  للحصول على أصغر رقم في نطاق الخلايا.",null,"فاكهة","القيمة",null,"اللحوم","القيمة"]
["استخدم الدالة MAX  للحصول على أكبر رقم في نطاق الخلايا.",null,"تفاح",50,null,"لحم بقري",50]
["حدد الخلية D7، ثم استخدم معالج الجمع التلقائي لإضافة الدالة MIN.\n",null,"برتقال",20,null,"دجاج",30]
["الآن حدد الخلية G7، وأدخل الدالة MAX عن طريق كتابة =MAX(D3:D6).\n",null,"موز",60,null,"لحم ماعز",10]
["في الخلية D15، يمكنك استخدام معالج الجمع التلقائي، أو الكتابة لإدخال الدالة MIN أو MAX. \n",null,"ليمون",40,null,"سمك",50]
["المزيد من المعلومات على الويب\n",null,"MIN >",null,null,"MAX >"]
["كافة المعلومات حول الدالة MIN"]
["كافة المعلومات حول الدالة MAX",null,"الصنف","القيمة",null,"الصنف","القيمة"]
["التدريب المجاني على Excel عبر الإنترنت",null,"الخبز",50,null,"الخبز",50]
["من الرائع معرفة أن\nيمكنك استخدام إما MIN أو MAX مع عدة نطاقات أو قيم لعرض القيم الأكبر أو الأقل لتلك القيم، مثل =MIN(A1:A10,B1:B10)، أو =MAX(A1:A10,B1)، حيث B1 تحتوي على قيمة الحد، مثل 10، في هذه الحالة لن ترجع الصيغة نتيجة أقل من 10.\n",null,"الكعك المقلي",100,null,"الكعك المقلي",100]
[null,null,"البسكويت",40,null,"البسكويت",40]
[null,null,"الكعك",50,null,"الكعك",50]
[null,null,"الفطائر",20,null,"الفطائر",20]
[null,null,"MIN أو MAX >",{"$nulls":3},{"$f":"MIN(G10:G14,10)","v":10}]
[]
[]
[]
["يمكنك استخدام إما MIN أو MAX باستخدام عدة نطاقات أو قيم لعرض القيم الأكبر أو الأقل من تلك القيم، مثل =MIN(A1:A10,B1:B10) أو =MAX(A1:A10,10)."]

{"sheet":"التاريخ والوقت","index":5,"n_rows":47,"n_cols":6,"rows_kept":47,"merged":[[4,2,4,3],[26,2,26,3],[30,2,30,3],[44,2,44,3]]}
["دالات التاريخ"]
["يمكن أن يقدم لك Excel التاريخ الحالي، استناداً إلى الإعدادات الإقليمية للكمبيوتر الخاص بك. يمكنك أيضاً إضافة التواريخ وطرحها."]
["ألق نظرة على الدالة TODAY، التي تقدم لك تاريخ اليوم. هذه دالات متغيرة أو مباشرة، لذا عندما تفتح هذا المصنف الخاص بك غداً، سيكون لك تاريخ الغد. أدخل =TODAY() في الخلية D6. \n"]
["طرح التواريخ - أدخل تاريخ ميلادك القادم بالتنسيق ش ش/ي ي/س س في الخلية D7، وسترى Excel يخبرك بعدد الأيام المتبقية عليه باستخدام =D7-D6 في الخلية D8.\n"]
["إضافة تواريخ - لنفترض أنك تريد معرفة تاريخ الفاتورة المستحق، أو عندما تحتاج إلى إرجاع كتاب إلى المكتبة. يمكنك إضافة أيام إلى تاريخ للتعرف عليه. في الخلية D10، أدخل رقماً عشوائياً للأيام. في الخلية D11، قمنا بإضافة =D6+D10 لحساب تاريخ الاستحقاق من اليوم.\n",null,"دالات التاريخ"]
["من الرائع معرفة أن\nيحتفظ Excel بالتواريخ والأوقات استناداً إلى عدد الأيام بدءاً من 1 يناير 1900. يتم الاحتفاظ بالأوقات بأجزاء كسرية من اليوم استناداً إلى الدقائق. لذا يتم تخزين 2017/01/01 12:30 م فعلياً كـ 42736.5208. إذا ظهر التاريخ أو الوقت كأرقام من هذا القبيل، فيمكنك الضغط على Ctrl+1 > رقم > تحديد تنسيق التاريخ أو الوقت. ",null,"تاريخ اليوم:",null,null,{"$f":"IF(D6=TODAY(),\"لك هذا!\",\"\")","v":""}]
["تفاصيل مهمة\nإذا كنت لا تريد من Excel عرض رقم سالب نظراً لأنك لم تقم بإدخال تاريخ ميلادك حتى الآن، يمكنك استخدام الدالة IF كما يلي: =IF(D7=\"\";\"\";D7-D6)، حيث تشير إلى \"إذا كانت الخلية D7 تساوي لا شيء، فأظهر لا شيء، بخلاف ذلك أظهر D7 ناقص D6\".\n",null,"تاريخ الميلاد:"]
["دالات الوقت",null,"الأيام حتى تاريخ ميلادك:",{"$f":"D7-D6","v":0}]
["يمكن أن يقدم لك Excel الوقت الحالي، استناداً إلى الإعدادات الإقليمية للكمبيوتر الخاص بك. يمكنك أيضاً إضافة أوقات وطرحها. على سبيل المثال، قد تحتاج إلى تعقب عدد الساعات التي عملها الموظف كل أسبوع، وحساب الأجر والعمل الإضافي له.\n"]
["في الخلية D28، أدخل =NOW()، حيث يتم تقديم الوقت الحالي، وسيتم تحديث كل وقت يحتسبه Excel. إذا كنت بحاجة إلى تغيير تنسيق الوقت، يمكنك الانتقال إلى Ctrl+1 > رقم > وقت > تحديد التنسيق الذي تريده.\n",null,"أيام فترة السماح:"]
["إضافة ساعات بين الأوقات - في الخلية D36 قمنا بإدخال =((D35-D32)-(D34-D33))*24، حيث تحسب أوقات البدء والنهاية لشخص ما، ثم تطرح الوقت الذي استغرقه لتناول الغداء. تحول *24 الموجودة في نهاية الصيغة الجزء الكسري من اليوم الذي يراه Excel إلى ساعات. بالرغم من ذلك يجب تنسيق الخلية كرقم. للقيام بذلك، انتقل إلى الصفحة الرئيسية > تنسيق > الخلايا (Ctrl+1) > رقم > رقم > رقمين عشريين.\n\n",null,"موعد استحقاق فاتورة في:",{"$f":"D6+D10","v":"00:00:00"}]
["إذا كان يمكن للصيغة أن تتحدث فالرسالة كالآتي \"حساب وقت الانصراف وطرحه من وقت الحضور، ثم طرح أوقات تسجيل الخروج/الدخول للغداء، ثم ضرب كل هذا في 24 لتحويل الأجزاء الكسرية من الوقت في Excel إلى ساعات\"، أو =((Time In - Time Out)-(Lunch In - Lunch Out))*24."]
["السابق"]
["التالي"]
["المزيد من المعلومات على الويب"]
["كافة المعلومات حول الدالة TODAY"]
["كافة المعلومات حول الدالة NOW"]
["كافة المعلومات حول الدالة DATE"]
["التدريب المجاني على Excel عبر الإنترنت"]
{"$rows_empty":7}
[null,null,"دالات الوقت"]
[null,null,"الوقت الحالي:"]
[]
[]
[null,null,"ساعات العمل اليومية"]
[null,null,"وقت الحضور:","08:00:00"]
[null,null,"الخروج إلى الغداء:","12:00:00"]
[null,null,"الدخول من الغداء:","13:00:00"]
[null,null,"وقت الانصراف:","17:00:00"]
[null,null,"إجمالي عدد الساعات:",{"$f":"((D35-D32)-(D34-D33))*24","v":8.000000000000002}]
{"$rows_empty":8}
[null,null,"التاريخ والوقت الثابتان"]
[null,null,"التاريخ:","2017-09-27"]
[null,null,"الوقت:","08:52:00"]

{"sheet":"ضمّ النص والأرقام","index":6,"n_rows":37,"n_cols":6,"rows_kept":37,"merged":[[26,2,26,3],[30,2,30,3],[34,2,34,3]]}
["ضم نص من خلايا مختلفة"]
["هناك عدة أوقات في Excel عندما تريد ضم نص موجود في خلايا مختلفة. هذا المثال شائع، حيث يكون لديك الاسم الأول واسم العائلة، وتريد دمجهما كاسم أول أو اسم عائلة أو الاسم بالكامل. لحسن الحظ، Excel يتيح لنا إجراء ذلك باستخدام علامة العطف (&) التي يمكنك إدخالها باستخدام Shift+7.\n",null,"الاسم الأول","اسم العائلة","الاسم الأول واسم العائلة","الاسم بالكامل"]
["في الخلية E3، أدخل =D3&C3 لدمج الاسم الأول واسم العائلة. \n",null,"عائشة","اللامي",{"$f":"D3&\", \"&C3","v":"اللامي, عائشة"},{"$f":"C3&\" \"&D3","v":"عائشة اللامي"}]
["لا يبدو اللامي عائشة صحيحاً تماماً على الرغم من ذلك. يجب أن نضيف فاصلة ومسافة. للقيام بذلك سنستخدم علامات الاقتباس لإنشاء سلسلة نصية جديدة. هذه المرة، أدخل =D3&\", \"&C3. يتيح لنا الجزء &\", \"& ضم فاصلة ومسافة بالنص في الخلايا.\n",null,"مختار","سراف"]
["لإنشاء اسم بالكامل، سنضم الاسم الأول واسم العائلة، ولكن سنستخدم مسافة بدون فاصلة. في F3، أدخل =C3&\" \"&D3.\n",null,"جبران","صباغ"]
["انتقل إلى الأسفل لمزيد من التفاصيل",null,"ملكة","أسود"]
["التالي",null,"سالم","بيطار"]
["استخدام النص والأرقام معاً",null,"رجب","قريشي"]
["الآن سنستخدم الرمز \"&\" لدمج نص وأرقام وليس نص ونص فقط.\n\nإلقاء نظرة على الخلايا C28:D29. معرفة كيف يكون التاريخ والأوقات في خلايا منفصلة؟ كما يمكنك ضمهما معاً مع الرمز \"&\" كما سترى في الخلايا C32:C33، ولكن لا تبدو صحيحة، أليس كذلك؟ لسوء الحظ، لا يعرف Excel الطريقة التي تريد تنسيق الأرقام بها، لذلك سيقسمها لأقل تنسيق لديها، وهو التاريخ المتسلسل في هذه الحالة. يجب إعلام Excel بكل وضوح عن كيفية تنسيق جزء رقم الصيغة، بحيث تعرض الطريقة التي تريدها في السلسلة النصية الناتجة. يمكنك القيام بذلك باستخدام الدالة TEXT ورمز التنسيق.",null,"جميل","زاهر"]
["في الخلية C36، أدخل =C28&\" \"&TEXT(D28,\"MM/DD/YYYY\"). MM/DD/YYYY هو رمز تنسيق الولايات المتحدة للشهر/اليوم/السنة، مثل 09/25/2017.\n",null,"علياء","ناتشي"]
["في الخلية C37، أدخل =C29&\" \"&TEXT(D29,\"HH:MM AM/PM\"). HH:MM AM/PM هو رمز تنسيق الولايات المتحدة للساعات: الدقائق صباحاً أو مساءً، مثل 1:30 م.\n\n"]
["اطلع على ذلك\nالصيغ، لا سيما الصيغ الكبيرة، في بعض الأحيان تكون صعبة القراءة، ولكن يمكنك تقسيمها إلى أجزاء باستخدام مسافات كما يلي:\n\n=C28 & \" \" & TEXT(D28,\"MM/DD/YYYY\")"]
["تستحق الاكتشاف\nإذا لم تكن تعرف أي رمز تنسيق تستخدمه، فيمكنك استخدام Ctrl+1 > الرقم لتنسيق أي خلية بالطريقة التي تريدها. ثم حدد خيار مخصص. يمكنك نسخ رمز التنسيق الذي تم عرضه مرة أخرى للصيغة الخاصة بك."]
["المزيد من المعلومات على الويب"]
["كافة المعلومات حول الدالة TEXT"]
["دمج النص والأرقام"]
["التدريب المجاني على Excel عبر الإنترنت"]
{"$rows_empty":9}
[null,null,"استخدام النص والأرقام"]
[null,null,"تاريخ اليوم:",{"$f":"TODAY()","v":"2019-10-11"}]
[null,null,"الوقت الحالي:",{"$f":"NOW()","v":"2019-10-11T08:40:23.290"}]
[]
[null,null,"ضم النص والأرقام"]
[null,null,{"$f":"C28&\" \"&D28","v":"تاريخ اليوم: 43749"}]
[null,null,{"$f":"C29&\" \"&D29","v":"الوقت الحالي: 43749.3613806713"}]
[]
[null,null,"تنسيق النص والأرقام"]
[null,null,{"$f":"C28 &\" \"& TEXT(D28,\"DD/MM/YYYY\")","v":"تاريخ اليوم: 11/10/2019"}]
[null,null,{"$f":"C29&\" \"&TEXT(D29,\"HH:MM:SS\")","v":"الوقت الحالي: 08:40:23"}]

{"sheet":"عبارات IF","index":7,"n_rows":37,"n_cols":6,"rows_kept":37,"merged":[[7,2,7,3]]}
["عبارات IF"]
["عبارات IF تسمح لك بإجراء مقارنات منطقية بين الشروط. بشكل عام تشير عبارة IF أنه إذا كان أحد الشروط صواب فقم بشيء ما، وبخلاف ذلك، قم بأي شيء آخر. يمكن للصيغ الموجودة أن تقوم بإرجاع النص أو القيم أو حتى المزيد من العمليات الحسابية."]
["في الخلية D9 قم بإدخال =IF(C9=\"Apple\",TRUE,FALSE). الإجابة الصحيحة هي TRUE. \n"]
["نسخ D9 إلى D10. يجب أن تكون الإجابة هنا FALSE، لأن برتقال ليس تفاح.\n"]
["جرب مثالاً آخر بالاطلاع على الصيغة الموجودة في الخلية D12. لقد جعلنك تبدأ بـ =IF(C12<100,\"Less than 100\",\"Greater than 100\"). ماذا يحدث إذا قمت بإدخال رقم أكبر من 100 في الخلية C12؟\n"]
["تفاصيل مهمة\nTRUE وFALSE عكس الكلمات الأخرى في صيغ Excel في أنها لا يلزم أن تكون في علامات اقتباس، وأن Excel سيجعلهما بحروف كبيرة تلقائياً. لا يلزم أن تكون الأرقام بين علامتي اقتباس كذلك. النص العادي، مثل نعم أو لا يحتاج إلى أن يكون في علامات اقتباس كما في المثال التالي: \n=IF(C9=\"Apple\",\"Yes\",\"No\")"]
["انتقل إلى الأسفل لمزيد من التفاصيل"]
["التالي",null,"عبارات IF"]
["عبارة IF مع دالة أخرى",null,"Apple"]
["يمكن أيضاً أن تفرض عبارات IF أن يتم تنفيذ عمليات حسابية إضافية إذا تحقق شرط معين. هنا سنقوم بتقييم خلية لرؤية ما إذا كان يجب فرض ضريبة المبيعات، ويتم حسابها إذا كان الشرط صواباً.\n",null,"Orange"]
["في الخلية F33، قمنا بإدخال =IF(E33=\"Yes\",F31*SalesTax,0)، حيث أننا قمنا بإعداد SalesTax كنطاق مسمى بقيمة 0.0825. تشير الصيغة إلى أنه في حالة ما إذا كانت الخلية E33 تساوي نعم، فقم بإجراء عملية ضرب الخلية F31 في SalesTax، وبخلاف ذلك يتم إرجاع 0.\n\nحاول تغيير نعم إلى لا في الخلية E33 للاطلاع على تغيير العملية الحسابية."]
["بعد ذلك، قمنا بإضافة عبارة IF لحساب الشحن إذا كان مطلوباً. في الخلية F35 ستتمكن من رؤية =IF(E35=\"Yes\",SUM(D28:D29)*1.25,0). يشير هذا إلى أنه \"في حالة ما إذا كانت الخلايا E35 نعم، فخذ مجموع عمود الكمية في الجدول أعلاه وقم بإجراء عملية ضرب عليه في 1.25، وبخلاف ذلك يتم إرجاع 0\"\n",null,50,{"$f":"IF(C12<100,\"Less than 100\",\"Greater than or equal to 100\")","v":"Less than 100"}]
["بعد ذلك، قم بتغيير 1.25 في الصيغة في الخلية F35 إلى \"شحن\". عند بدء الكتابة، يجب أن يعثر التصحيح التلقائي في Excel التلقائي عليه نيابة عنك. عندما يحدث ذلك، اضغط على Tab لإدخاله. هذا نطاق مسمى، وقمنا بإدخاله من الصيغ > تعريف اسم. والآن، إذا كنت بحاجة لتغيير تكلفة الشحن الخاص بك، يجب عليك القيام بذلك في مكان واحد، ويمكنك استخدام اسم الشحن في أي مكان في المصنف.\n\n"]
["من الرائع معرفة أن\nعند إنشاء صيغة، سيقوم Excel تلقائياً بوضع حدود ملونة حول أي نطاقات مشار إليها في الصيغة، وستصبح النطاقات المقابلة في الصيغة بنفس اللون. يمكنك الاطلاع على هذا إذا قمت بتحديد الخلية F33 والضغط على F2 لتحرير الصيغة."]
["تلميح الخبراء\nالنطاقات المسماة تسمح لك بتحديد الشروط أو القيم في مكان واحد، ثم إعادة استخدامها خلال مصنف. يمكنك رؤية جميع النطاقات المسماة في هذا المصنف عن طريق الانتقال إلى الصيغ > إدارة الأسماء. انقر هنا للتعرّف على المزيد\n"]
["السابق"]
["التالي"]
["المزيد من المعلومات على الويب"]
["كافة المعلومات حول الدالة IF"]
["كافة المعلومات حول الدالة IFS"]
["عبارات IF متقدمة"]
["التدريب المجاني على Excel عبر الإنترنت"]
[]
[]
[]
[]
[null,null,"الصنف","الكمية","التكلفة","الإجمالي"]
[null,null,"ميزة إنشاء الملاحظات",2,{"v":9.760711585683554,"d":"ر.س.‏ 9.76"},{"$f":"'عبارات IF'!$E$28:$E$29*'عبارات IF'!$D$28:$D$29","v":{"v":19.521423171367108,"d":"ر.س.‏ 19.52"}}]
[null,null,"دوهيكيي",3,{"v":3.4189202461080024,"d":"ر.س.‏ 3.42"},{"v":10.256760738324008,"d":"ر.س.‏ 10.26"}]
[]
[{"$nulls":3},"الإجمالي الفرعي",{"$f":"SUM('عبارات IF'!$E$28:$E$29)","v":{"v":13.179631831791557,"d":"ر.س.‏ 13.18"}},{"$f":"SUM('عبارات IF'!F28:F29)","v":{"v":29.778183909691116,"d":"ر.س.‏ 29.78"}}]
[]
[{"$nulls":3},"ضريبة المبيعات؟","Yes",{"$f":"IF(E33=\"Yes\",F31*SalesTax,0)","v":{"v":2.456700172549517,"d":"ر.س.‏ 2.46"}}]
[]
[{"$nulls":3},"الشحن؟","Yes",{"$f":"IF(E35=\"نعم\",SUM(D28:D29)*1.25,0)","v":{"v":0,"d":"ر.س.‏ 0.00"}}]
[]
[{"$nulls":3},"الإجمالي",null,{"$f":"SUM(F33,F31,F35)","v":{"v":32.23488408224063,"d":"ر.س.‏ 32.23"}}]

{"sheet":"VLOOKUP","index":8,"n_rows":43,"n_cols":7,"rows_kept":43}
["VLOOKUP"]
["الدالة VLOOKUP واحدة من الدالات المنتشرة بشكل واسع في Excel (وواحدة من أدواتنا المفضلة جداً!). تتيح لك الدالة VLOOKUP إمكانية البحث عن قيمة في عمود على الجانب الأيمن، ثم تقوم بإرجاع المعلومات في عمود آخر على الجانب الأيسر إذا عثرت على مطابقة. تشير VLOOKUP إلى:\n"]
["=VLOOKUP(A1,B:C,2,FALSE)"]
["ما الذي تريد البحث عنه؟"]
["إذا عثرت عليه، كم عمود على الجانب الأيسر تريد الحصول على القيمة فيه؟"]
["أين تريد البحث عنه؟"]
["هل تريد الحصول على تطابق تام أم تقريبي؟"]
["في الخلية D22، أدخل =VLOOKUP(C22,C17:D20,2,FALSE). الإجابة الصحيحة للتفاح هي 50. الدالة VLOOKUP بحثت عن تفاح، ووجدته، ثم انتقلت عموداً واحداً إلى اليمين، وقامت بإرجاع القيمة.\n\n"]
["والآن جرب بنفسك في المقطع لحوم، في الخلية G22. يجب أن ينتهي الأمر بـ =VLOOKUP(F22,F17:G20,2,FALSE).\n\n"]
["تجربة\nحاول تحديد عناصر مختلفة من القوائم المنسدلة. ستتمكن من رؤية خلايا النتائج فوراً تحدث أنفسها بالقيم الجديدة."]
["انتقل إلى الأسفل لمزيد من التفاصيل"]
["التالي"]
["VLOOKUP و#N/A"]
["وبشكل دائم، ستواجه موقف حيث لا تستطيع الدالة VLOOKUP إيجاد ما طلبته، وترجع الخطأ (#N/A). في بعض الأحيان، يكون بسبب عدم وجود قيمة البحث، أو قد يكون نظراً لأن الخلية المرجعية لا تحتوي على قيمة حتى الآن.\n"]
["إذا كنت تعرف أن قيمة البحث موجودة، ولكنك تريد إخفاء الخطأ إذا كانت خلايا البحث فارغة، يمكنك استخدام عبارة IF. في هذه الحالة، سنقوم بالتفاف صيغة VLOOKUP الموجود كما يلي في الخلية D43:\n\n=IF(C43=\"\",\"\",VLOOKUP(C43,C37:D41,2,FALSE))\n\nهذا يشير إلى أنه إذا كانت الخلية C43 تساوي لا شيء (\"\")، يتم إرجاع لا شيء، بخلاف ذلك يتم إرجاع نتائج الدالة VLOOKUP. لاحظ أقواس الإغلاق الثانية في نهاية الصيغة. تغلق عبارة IF.\n"]
["إذا لم تكن متأكداً من وجود قيمة البحث، ولكن لا تزال ترغب في منع الخطأ #N/A، فيمكنك استخدام دالة معالجة الأخطاء التي تسمى IFERROR في الخلية G43: =IFERROR(VLOOKUP(F43;F37:G41;2,FALSE);\"\"). تشير الدالة IFERROR إلى أنه إذا أرجعت الدالة VLOOKUP نتيجة صالحة، اعرض ذلك، وبخلاف ذلك، اعرض لا شيء (\"\"). إننا لا نعرض أي شيء هنا (\"\")، لكن يمكنك أيضاً استخدام أرقام (0, 1، 2، إلخ.)، أو نص، على سبيل المثال، \"الصيغة غير صحيحة\".\n",null,"فاكهة","القيمة",null,"اللحوم","القيمة"]
["تفاصيل مهمة\nالدالة IFERROR وهي ما تعرف كمعالج شامل للأخطاء، مما يعني أنها ستمنع أي خطأ قد يحدث بالصيغة الخاصة بك. هذا قد يسبب مشاكل إذا كان Excel يوفر لك إشعاراً يفيد بأن الصيغة الخاصة بك تحتوي على خطأ مرخص يحتاج للإصلاح.\n\nالقاعدة الأساسية هي عدم إضافة معالجات الأخطاء إلى الصيغ حتى تتأكد تماماً من عملها بشكل صحيح.",null,"تفاح",50,null,"لحم بقري",50]
["السابق",null,"برتقال",20,null,"دجاج",30]
["التالي",null,"موز",60,null,"لحم ماعز",10]
["المزيد من المعلومات على الويب",null,"ليمون",40,null,"سمك",50]
["كافة المعلومات حول الدالة VLOOKUP"]
["كافة المعلومات حول الدالتين INDEX/MATCH",null,"تفاح",null,null,"لحم ماعز"]
["كافة المعلومات حول الدالة IFERROR"]
["استخدام PivotTable لتحليل بيانات ورقة العمل"]
["التدريب المجاني على Excel عبر الإنترنت"]
{"$rows_empty":9}
[null,null,"إذا كان يمكن للدالة SUM في الخلية D42 أن تتحدث، فالرسالة كالآتي: قم بتجميع القيم الموجودة في الخلايا D38 وD39 وD40 وD41."]
[null,null,"الصنف","القيمة",null,"الصنف","القيمة"]
[null,null,"الخبز",50,null,"الخبز",50]
[null,null,"الكعك المقلي",100,null,"الكعك المقلي",100]
[null,null,"البسكويت",40,null,"البسكويت",40]
[null,null,"الكعك",50,null,"الكعك",50]
[null,null,"الفطائر",20,null,"الفطائر",20]
[]
[{"$nulls":3},{"$f":"VLOOKUP(C43,C37:D41,2,FALSE)","v":{"$error":"#N/A"}},null,"معجنات",{"$f":"IFERROR(VLOOKUP(F43,F37:G41,2,FALSE),\"\")","v":""}]

{"sheet":"الدالات الشرطية","index":9,"n_rows":123,"n_cols":34,"rows_kept":123}
["الدالات الشرطية - SUMIF"]
["الدالات الشرطية تتيح لك جمع النطاق أو حساب متوسطه أو عده أو الحصول على الحد الأدنى والحد الأقصى له استناداً إلى شرط معين، أو معايير قمت بتحديدها. على سبيل المثال، من جميع الفواكه الموجودة في القائمة، كم عدد التفاح؟ أو، كم عدد البرتقال من النوع فلوريدا؟",null,"فاكهة","القيمة",null,"فاكهة","النوع","القيمة",{"$nulls":17},"فاكهة",null,"تفاح",null,"برتقال",null,"موز",null,"ليمون"]
["تتيح لك SUMIF التجميع في نطاق واحد استناداً إلى معايير معينة تبحث عنها في نطاق آخر، مثل عدد التفاح الذي لديك. حدد الخلية D17 واكتب =SUMIF(C3:C14,C17,D3:D14). تتم هيكلة SUMIF كما يلي:",null,"تفاح",50,null,"تفاح","فوجي",50,{"$nulls":17},"تفاح",null,"فوجي",null,"فلوريدا",null,"كافنديش",null,"روغ"]
["=SUMIF(C3:C14,C17,D3:D4)",null,"برتقال",20,null,"برتقال","فلوريدا",20,{"$nulls":17},"برتقال",null,"هون كريسب",null,"أبو سرة",null,"ليدي فنجر",null,"يوريكا"]
["ما هو النطاق الذي تريد إلقاء نظرة عليه؟",null,"موز",60,null,"موز","كافنديش",60,{"$nulls":17},"موز"]
["ما هي القيمة (نص أو رقم) التي تريد البحث عنها؟",null,"ليمون",40,null,"ليمون","روغ",40,{"$nulls":17},"ليمون"]
["لكل تطابق تجده، ما هو النطاق الذي تريد الجمع فيه؟",null,"تفاح",50,null,"تفاح","هون كريسب",50]
["الدالة SUMIFS هي نفس الدالة SUMIF، ولكنها تتيح لك استخدام معايير متعددة. وبالتالي في هذا المثال، يمكنك البحث عن الفاكهة والنوع، بدلاً من الفاكهة فقط. حدد الخلية H17 واكتب =SUMIFS(H3:H14,F3:F14,F17,G3:G14,G17). تتم هيكلة SUMIFS كما يلي:\n",null,"برتقال",20,null,"برتقال","أبو سرة",20]
["=SUMIFS(H3:H14,F3:F14,F17,G3:G14,G17)",null,"موز",60,null,"موز","ليدي فنجر",60]
["ما هو النطاق الذي تريد جمعه؟",null,"ليمون",40,null,"ليمون","يوريكا",40]
["هذا هو النطاق الأول للبحث فيه على مطابقات",null,"تفاح",50,null,"تفاح","هون كريسب",50]
["هذه هي معايير التطابق الأول",null,"برتقال",20,null,"برتقال","أبو سرة",20]
["هذا هو النطاق الثاني للبحث فيه على مطابقات",null,"موز",60,null,"موز","كافنديش",60]
["هذه هي معايير التطابق الثاني",null,"ليمون",40,null,"ليمون","يوريكا",40]
["تلميح الخبراء\nتحتوي كل واحدة من خلايا الفاكهة والنوع على قائمة منسدلة حيث يمكنك تحديد فاكهة مختلفة. جرب بنفسك، وشاهد تحديث الصيغ تلقائياً."]
["انتقل إلى الأسفل لمزيد من التفاصيل",null,"فاكهة","SUMIF",null,"فاكهة","النوع","SUMIFS"]
["الخطوة التالية",null,"تفاح",null,null,"برتقال","فلوريدا"]
["الدالات الشرطية - COUNTIF"]
["تتيح لك كل من COUNTIF وCOUNTIFS حساب عدد القيم في نطاق استناداً إلى المعايير التي تحددها. تكون مختلفة قليلاً عن دالتي IF وIFS، في أن لديها نطاق معايير فقط، ومعايير. لا تقيم نطاق واحد، وتبحث في نطاق آخر للتلخيص."]
["حدد الخلية D64 واكتب =COUNTIF(C50:C61,C64). تتم هيكلة COUNTIF كما يلي:"]
["=COUNTIF(C50:C61,C64)"]
["ما هو النطاق الذي تريد إلقاء نظرة عليه؟"]
["ما هي القيمة (نص أو رقم) التي تريد البحث عنها؟"]
["الدالة COUNTIFS هي نفس الدالة SUMIF، ولكنها تتيح لك استخدام معايير متعددة. وبالتالي في هذا المثال، يمكنك البحث عن الفاكهة والنوع، بدلاً من الفاكهة فقط. حدد الخلية H64 واكتب =COUNTIFS(F50:F61,F64,G50:G61,G64). تتم هيكلة COUNTIFS كما يلي:\n"]
["=COUNTIFS(F50:F61,F64,G50:G61,G64)"]
["هذا هو النطاق الأول للحساب"]
["هذه هي معايير التطابق الأول"]
["هذا هو النطاق الثاني للحساب"]
["هذه هي معايير التطابق الثاني"]
["انتقل إلى الأسفل لمزيد من التفاصيل"]
["التالي"]
["دالات شرطية إضافية"]
["لقد رأيت SUMIF وSUMIFS وCOUNTIF وCOUNTIFS بالفعل. الآن يمكنك التجربة بنفسك باستخدام دالات أخرى، مثل AVERAGEIF/S وMAXIFS وMINIFS. تتم هيكلة الجميع بالطريقة نفسها، وبالتالي، فبمجرد كتابة صيغة واحدة، ما عليك سوى استبدال اسم الدالة بالخيار الذي تريده. لقد كتبنا كافة الدالات التي ستحتاج إليها للخلية E106، حيث يمكنك نسخها/لصقها، أو محاولة كتابتها بنفسك لممارسة.\n\nSUMIF \t=SUMIF(C92:C103,C106,E92:E103) \nSUMIFS \t=SUMIFS(E92:E103,C92:C103,C106,D92:D103,D106) \nAVERAGEIF \t=AVERAGEIF(C92:C103,C106,E92:E103) \nAVERAGEIFS\t=AVERAGEIFS(E92:E103,C92:C103,C106,D92:D103,D106)\nCOUNTIF \t=COUNTIF(C92:C103,C106)\nCOUNTIFS \t=COUNTIFS(C92:C103,C106,D92:D103,D106) \nMAXIFS \t=MAXIFS(E92:E103,C92:C103,C106,D92:D103,D106)\nMINIFS \t=MINIFS(E92:E103,C92:C103,C106,D92:D103,D106)\n"]
["انتقل إلى الأسفل لمزيد من التفاصيل"]
["التالي"]
["SUMIF مع وسيطة قيمة"]
["فيما يلي مثال على الدالة SUMIF باستخدام أكبر من > للعثور على كافة القيم الأكبر من القيمة المقدمة:"]
[{"$f":"SUMIF(D118:D122,\">=50\")","v":200}]
["قم بجمع بعض القيم استناداً إلى هذه المعايير:"]
["....استعرض هذه الخلايا...\n "]
["...وإذا كانت القيمة أكبر من 50، فقم بجمعها.\n "]
["ملاحظة: في حال وجدت أنك تقوم بإنشاء عدد كبير من الصيغ الشرطية، فقد تجد أن إدراج PivotTable هو الحل الأفضل. راجع مقالة PivotTable لمزيد من المعلومات."]
["المزيد من المعلومات على الويب"]
["كافة المعلومات حول الدالة SUMIF"]
["كافة المعلومات حول الدالة SUMIFS"]
["كافة المعلومات حول الدالة COUNTIF"]
["كافة المعلومات حول الدالة COUNTIFS"]
["كافة المعلومات حول الدالة AVERAGEIF"]
["كافة المعلومات حول الدالة AVERAGEIFS",null,"فاكهة","القيمة",null,"فاكهة","النوع","القيمة"]
["كافة المعلومات حول الدالة MINIFS",null,"تفاح",50,null,"تفاح","فوجي",50]
["كافة المعلومات حول الدالة MAXIFS",null,"برتقال",20,null,"برتقال","فلوريدا",20]
["إنشاء قائمة منسدلة",null,"موز",60,null,"موز","كافنديش",60]
["التدريب المجاني على Excel عبر الإنترنت",null,"ليمون",40,null,"ليمون","روغ",40]
["الرجوع إلى أعلى",null,"تفاح",50,null,"تفاح","هون كريسب",50]
["التالي",null,"برتقال",20,null,"برتقال","أبو سرة",20]
[null,null,"موز",60,null,"موز","ليدي فنجر",60]
[null,null,"ليمون",40,null,"ليمون","يوريكا",40]
[null,null,"تفاح",50,null,"تفاح","هون كريسب",50]
[null,null,"برتقال",20,null,"برتقال","أبو سرة",20]
[null,null,"موز",60,null,"موز","كافنديش",60]
[null,null,"ليمون",40,null,"ليمون","يوريكا",40]
[]
[null,null,"فاكهة","COUNTIF",null,"فاكهة","النوع","COUNTIFS"]
[null,null,"تفاح",{"$f":"COUNTIF(C50:C61,C64)","v":3},null,"برتقال","فلوريدا",{"$f":"COUNTIFS(F50:F61,F64,G50:G61,G64)","v":1}]
{"$rows_empty":26}
[null,null,"فاكهة","النوع","القيمة"]
[null,null,"تفاح","فوجي",50]
[null,null,"برتقال","فلوريدا",20]
[null,null,"موز","كافنديش",60]
[null,null,"ليمون","روغ",40]
[null,null,"تفاح","هون كريسب",50]
[null,null,"برتقال","أبو سرة",20]
[null,null,"موز","ليدي فنجر",60]
[null,null,"ليمون","يوريكا",40]
[null,null,"تفاح","هون كريسب",50]
[null,null,"برتقال","أبو سرة",20]
[null,null,"موز","كافنديش",60]
[null,null,"ليمون","يوريكا",40]
[]
[null,null,"فاكهة","النوع","جرّبه:"]
[null,null,"ليمون","يوريكا",{"$f":"AVERAGEIFS(E92:E103,C92:C103,C106,D92:D103,D106)","v":40}]
{"$rows_empty":10}
[null,null,"الصنف","القيمة"]
[null,null,"الخبز",50]
[null,null,"الكعك المقلي",100]
[null,null,"البسكويت",40]
[null,null,"الكعك",50]
[null,null,"الفطائر",20]
[{"$nulls":3},{"$f":"SUMIF(D118:D122,\">=50\")","v":200}]

{"sheet":"معالج الدالة","index":10,"n_rows":14,"n_cols":4,"rows_kept":14}
["دع معالج الدالة يرشدك"]
["إذا كنت تعرف اسم الدالة التي تريدها، ولكنك لست متأكداً من كيفية إنشائها، يمكنك استخدام معالج الدالة لمساعدتك.\n"]
["حدد الخلية D10، ثم انتقل إلى الصيغ > إدراج دالة > اكتب VLOOKUP في مربع البحث عن دالة، واضغط على GO. عندما ترى أنه تم تمييز VLOOKUP، انقر فوق موافق في الأسفل. عندما تحدد دالة في القائمة، سيعرض Excel بناء الجملة الخاصة بها.\n"]
["بعد ذلك، أدخل وسيطات الدالة في مربعات النص الخاصة بها. بينما تقوم بإدخال كل واحدة، سيقوم Excel بتقييمها، وإظهار النتيجة، مع النتيجة النهائية في الأسفل. بينما تقوم بإدخال كل مقطع، يتم سرد المعايير لكل وسيطة في أسفل النموذج. اضغط موافق عند الانتهاء، وسيقوم Excel بإدخال الصيغة بالنيابة عنك.\n\n\n",null,"فاكهة","القيمة"]
["اطلع على ذلك\nيجب أن ينتهي الأمر بـ =VLOOKUP(C10,C5:D8,2,FALSE)",null,"تفاح",50]
["من الرائع معرفة أن\nيمكنك كتابة مراجع الخلية والنطاق أو تحديدها باستخدام الماوس.",null,"برتقال",20]
["من الرائع معرفة أن\nعند إدخال كل مقطع وسيطة، سيتم عرض وصف للوسيطة أسفل النموذج وفوق نتيجة الصيغة.\n",null,"موز",60]
["السابق",null,"ليمون",40]
["التالي"]
["المزيد من المعلومات على الويب",null,"تفاح",{"$f":"VLOOKUP(C10,C5:D8,2,FALSE)","v":50}]
["نظرة عامة حول الصيغ في Excel"]
["دالات Excel (حسب الفئة)"]
["دالات Excel (بالترتيب الأبجدي)"]
["التدريب المجاني على Excel عبر الإنترنت"]

{"sheet":"أخطاء في الصيغة","index":11,"n_rows":36,"n_cols":4,"rows_kept":36}
["تصحيح أخطاء الصيغ"]
["أحياناً في الوقت، ستواجه صيغة تحتوي على رسالة خطأ، التي سيعرضها Excel مع #ErrorName. يمكن أن تكون الأخطاء مفيدة، نظراً لأنه في حالة عدم عمل شيء ما بشكل صحيح تقوم بالإشارة إليه، ولكن يمكن أن يكون من الصعب إصلاح المشكلة. لحسن الحظ، هناك العديد من الخيارات يمكنها أن تساعدك في تعقب مصدر الخطأ وحله.\n"]
["تدقيق الأخطاء - انتقل إلى الصيغ > تدقيق الأخطاء سيقوم هذا بتحميل مربع الحوار الذي سيخبرك بالسبب العام للخطأ المحدد. في الخلية D9، يحدث الخطأ #N/A نظراً لعدم وجود أية قيمة تطابق \"تفاح\". يمكنك إصلاح ذلك باستخدام قيمة موجودة أو منع الخطأ باستخدام الدالة IFERROR أو تجاهل ذلك ومعرفة أنه سيختفي عند استخدام قيمة موجودة.\n",null,"فاكهة","المبلغ"]
["إذا نقرت فوق تعليمات حول هذا الخطأ، فسيتم فتح موضوع التعليمات مخصص لرسالة الخطأ. إذا نقرت فوق إظهار خطوات الحساب، فسيتم تحميل مربع حوار تقييم صيغة.\n",null,"تفاح",50]
["كل مرة تنقر فوق تقييم، سيقوم Excel بالانتقال خلال الصيغة مقطع واحد في كل مرة. ليس من الضروري إخبارك بسبب حدوث الخطأ، ولكن ستتم الإشارة إلى مكانه. من هناك، يمكنك الاطلاع على موضوع التعليمات لاستنتاج الخطأ الذي حدث للصيغة الخاصة بك.\n",null,"برتقال",20]
["تجربة\nما الخطأ هنا؟ تلميح: نحاول تجميع كل العناصر.",null,"موز",60]
["من الرائع معرفة أن\nالنقر فوق \"خيارات\" سيتيح لك تعيين القواعد عند عرض الأخطاء في Excel أو تجاهلها.\n",null,"ليمون",40]
["السابق"]
["التالي",null,"تفاحة",{"$f":"VLOOKUP(C9,C3:D7,2,FALSE)","v":{"$error":"#N/A"}}]
["المزيد من المعلومات على الويب"]
["الكشف عن الأخطاء في الصيغ"]
["كيفية تفادي الصيغ المقطوعة"]
["تقييم الصيغة المتداخلة خطوة بخطوة"]
["التدريب المجاني على Excel عبر الإنترنت"]
{"$rows_empty":15}
[null,null,"فاكهة","القيمة"]
[null,null,"تفاح",50]
[null,null,"برتقال",20]
[null,null,"موز",60]
[null,null,"ليمون",40]
[]
[null,null,"الإجمالي",{"$f":"sume(D31:D34)","v":{"$error":"#NAME?"}}]

{"sheet":"التعرّف على المزيد","index":12,"n_rows":5,"n_cols":1,"rows_kept":5}
["هل لديك المزيد من الأسئلة حول Excel؟"]
["اضغط على ALT+خ واكتب ما ترغب في معرفة المزيد حوله."]
["استمر في المتابعة. هناك المزيد للتعرّف عليه باستخدام Excel:"]
["المجتمع: طرح الأسئلة والتواصل مع مستخدمي Excel الآخرين.\n"]
["ما هو الجديد أيضاً؟\nيحصل مشتركو Office 365 على ميزات جديدة وتحديثات متواصلة.\n\n"]